Cogmind - Beta 13 @@@ ROGUE MODE // 2024.04.04 @ 19:48:03 Player: Spuddz Result: Self-destructed Performance ------------- Evolutions (2) 1000 Regions Visited (5) 1000 Robots Destroyed (21) 105 Value Destroyed (357) 357 Prototype IDs (0) 0 Alien Tech Used (0) 0 Bonus (0) 0 TOTAL SCORE: 2462 Bonus ------- None Cogmind --------- Core Integrity 503/550 Matter 104/300 Energy 250/250 System Corruption 0% Temperature Cool (0) Movement Treading (160) Location -8/Materials Parts ------- > --- POWER (1) -------- Ion Engine > --- PROPULSION (3) --- Light Treads Light Treads Titanium Leg > --- UTILITY (5) ------ Small Storage Unit > --- WEAPON (2) ------- Assault Rifle > --- INVENTORY (8) ---- Light Ion Engine Aluminum Leg Light Armor Plating Light Armor Plating Light Armor Plating Assault Rifle Light Assault Rifle Heavy Assault Rifle Peak State ------------ > --- POWER ------------ Ion Engine > --- PROPULSION ------- Light Treads Light Treads Titanium Leg > --- UTILITY ---------- Small Storage Unit > --- WEAPON ----------- Assault Rifle Assault Rifle > --- INVENTORY -------- Light Ion Engine Aluminum Leg Light Armor Plating Light Armor Plating Light Armor Plating Light Assault Rifle Heavy Assault Rifle Grenade Launcher [Rating: 9] Favorites ----------- Power Ion Engine Engine Ion Engine Propulsion Light Treads Treads Light Treads Leg Aluminum Leg Utility Small Storage Unit Storage Small Storage Unit Protection Light Armor Plating Weapon Assault Rifle Ballistic Gun Assault Rifle Launcher Grenade Launcher Build | -11 -10 -10 -9 -9 -8 ------- Run | Yrd Mat Min Mat Min Mat Slots Evolved 4 | . . . 2 . 2 Power . | . . . . . . Propulsion 1 | . . . 1 . . Utility 3 | . . . 1 . 2 Weapon . | . . . . . . Parts Attached 11 | 7 1 . 1 . 2 Power 2 | 2 . . . . . Engine 2 | 2 . . . . . Core . | . . . . . . Reactor . | . . . . . . Propulsion 4 | 2 . . 1 . 1 Treads 2 | 2 . . . . . Leg 2 | . . . 1 . 1 Wheel . | . . . . . . Hover . | . . . . . . Flight . | . . . . . . Utility 2 | 1 1 . . . . Device . | . . . . . . Storage 1 | 1 . . . . . Processor . | . . . . . . Hackware . | . . . . . . Protection 1 | . 1 . . . . Artifact . | . . . . . . Weapon 3 | 2 . . . . 1 Energy Gun . | . . . . . . Energy Cannon . | . . . . . . Ballistic Gun 2 | 2 . . . . . Ballistic Cannon . | . . . . . . Launcher 1 | . . . . . 1 Special Weapon . | . . . . . . Impact Weapon . | . . . . . . Slashing Weapon . | . . . . . . Piercing Weapon . | . . . . . . Special Melee Weapon . | . . . . . . Unidentified Prototypes . | . . . . . . Parts Lost 2 | . . . 1 . 1 Power . | . . . . . . Propulsion . | . . . . . . Utility 1 | . . . 1 . . Weapon 1 | . . . . . 1 Highest Loss Streak 1 | . . . 1 . 1 To Critical Strikes . | . . . . . . Average Slot Usage (%) 85 | . 92 100 81 77 63 Engine 12 | . 14 14 11 11 9 Treads 24 | . 28 28 22 22 18 Leg 4 | . . . 11 11 9 Storage 12 | . 14 14 11 11 9 Protection 6 | . 6 14 4 . . Ballistic Gun 23 | . 28 28 22 22 13 Launcher 1 | . . . . . 4 Naked Turns . | . . . . . . Heaviest Build 17 | 14 17 17 17 14 15 Greatest Support 40 | 40 40 40 40 40 40 Greatest Overweight (x) . | . . . . . . Average Overweight (x) . | . . . . . . Largest Inventory Capacity 8 | 8 8 8 8 8 8 Average Capacity 7 | 7 8 8 8 8 8 Most Carried 8 | 5 8 8 8 8 8 Average Carried 7 | 2 6 8 7 8 8 Final Capacity 8 | 8 8 8 8 8 8 Final Carried 8 | 3 8 8 8 8 8 Class Distribution -------------------- 100% | Mutant Dominant Class ---------------- Mutant | -10/Materials Mutant | -10/Mines Mutant | -9/Materials Mutant | -9/Mines Mutant | -8/Materials Resources | -11 -10 -10 -9 -9 -8 ----------- Run | Yrd Mat Min Mat Min Mat Matter Collected 433 | 240 86 . 56 36 15 Remotely . | . . . . . . Salvage Created 319 | . 100 . 59 69 91 Parts 33 | . 7 . 2 7 17 Haulers Intercepted . | . . . . . . Recyclers Shooed . | . . . . . . Parts Field Recycled . | . . . . . . Retrieved Matter . | . . . . . . Parts Self-Destructed . | . . . . . . Prevented . | . . . . . . Kills | -11 -10 -10 -9 -9 -8 ------- Run | Yrd Mat Min Mat Min Mat Combat Hostiles Destroyed 15 | . 3 . 1 4 7 Guns 10 | . 3 . 1 4 2 AOE 5 | . . . . . 5 Classes Destroyed 7 | . 4 . 1 . 2 Worker 3 | . 1 . . . 2 Builder 2 | . . . . . 2 Watcher 1 | . 1 . . . . Swarmer 10 | . 2 . . 4 4 Grunt 3 | . 1 . . . 2 Sentry 1 | . . . 1 . . Hunter 1 | . . . . . 1 Best Kill Streak 7 | . 3 . 1 4 7 Combat Bots Only 5 | . 2 . 1 4 5 Max Kills in Single Turn 3 | . 1 . 1 1 3 Gunslinging . | . . . . . . Exploded 1 | . . . . . 1 Melee . | . . . . . . Uniques/NPCs Destroyed . | . . . . . . Combat | -11 -10 -10 -9 -9 -8 -------- Run | Yrd Mat Min Mat Min Mat Hostile Shots Fired 87 | . 36 6 6 8 31 Missed 25 | . 12 . 2 . 11 Damage Taken 805 | . 201 227 59 64 254 Core 172 | . 52 47 . 26 47 Absorbed by Shields . | . . . . . . Core Remaining (%) 84 | 100 . 60 . 93 . Volleys Fired 42 | . 13 1 3 6 19 Largest 2 | . 2 2 2 2 2 Hottest 50 | . 40 40 40 40 50 Shots Fired 74 | . 26 2 6 12 28 Gun 58 | . 26 2 6 12 12 Cannon . | . . . . . . Launcher 16 | . . . . . 16 Special . | . . . . . . Kinetic 58 | . 26 2 6 12 12 Thermal . | . . . . . . Explosive 16 | . . . . . 16 Electromagnetic . | . . . . . . Robot Hit Streak 8 | . 6 1 2 6 8 Robot Miss Streak 4 | . 4 1 2 1 3 Penetration Max . | . . . . . . Secondary Targets . | . . . . . . Shots Hit Robots 39 | . 15 1 3 8 12 Core Hits 35 | . 6 1 2 4 22 Critical Kills . | . . . . . . Critical Parts Destroyed . | . . . . . . Critical Strikes . | . . . . . . Melee Attacks . | . . . . . . Impact . | . . . . . . Slashing . | . . . . . . Piercing . | . . . . . . Sneak Attacks . | . . . . . . Combat Hostiles . | . . . . . . Follow-up Attacks . | . . . . . . Damage Inflicted 1278 | . 237 5 33 84 919 Guns 448 | . 234 5 33 84 92 Cannons . | . . . . . . Explosions 827 | . . . . . 827 Melee . | . . . . . . Ramming 3 | . 3 . . . . Kinetic 448 | . 234 5 33 84 92 Thermal . | . . . . . . Explosive 827 | . . . . . 827 Electromagnetic . | . . . . . . Impact . | . . . . . . Slashing . | . . . . . . Piercing . | . . . . . . Highest Corruption . | . . . . . . Average Corruption . | . . . . . . Corruption Purged . | . . . . . . Corruption Blocked . | . . . . . . Overload Shots . | . . . . . . Overflow Damage 37 | . . . . . 37 Projectiles . | . . . . . . Explosions 37 | . . . . . 37 Melee . | . . . . . . Knockbacks . | . . . . . . Impact . | . . . . . . Kinetic . | . . . . . . Secondary . | . . . . . . Self-Inflicted Damage . | . . . . . . Shots . | . . . . . . Rammed 1 | . 1 . . . . Targets Rammed 1 | . 1 . . . . Kicked . | . . . . . . Crushed . | . . . . . . Highest Temperature 2 | . 2 . . . . Average Temperature 2 | . 2 . . . . Received Heat Transfer 84 | . 30 . 9 . 45 Siege Activations . | . . . . . . Robots Corrupted . | . . . . . . Combat Hostiles . | . . . . . . Parts Fried . | . . . . . . Impact Corruptions . | . . . . . . Robots Melted . | . . . . . . Combat Hostiles . | . . . . . . Parts Melted . | . . . . . . Heat Transferred . | . . . . . . Parts Sabotaged . | . . . . . . Parts Stolen . | . . . . . . Parts Stripped . | . . . . . . Power Chain Reactions . | . . . . . . Alert | -11 -10 -10 -9 -9 -8 ------- Run | Yrd Mat Min Mat Min Mat Peak Influence 266 | . 112 43 51 109 266 Initial 43 | . . 43 16 19 42 Average 50 | . 23 43 35 68 107 Maximum Alert Level 1 | . . . . . 1 Low Security (%) 98 | 100 100 100 100 100 94 Level 1 1 | . . . . . 5 Level 2 . | . . . . . . Level 3 . | . . . . . . Level 4 . | . . . . . . Level 5 . | . . . . . . High Security . | . . . . . . Max Security . | . . . . . . Squads Dispatched 1 | . . . . . 1 Investigation . | . . . . . . Extermination . | . . . . . . Reinforcement 1 | . . . . . 1 Assault . | . . . . . . Garrison . | . . . . . . Intercept . | . . . . . . Searches Triggered . | . . . . . . Construction Impeded . | . . . . . . Haulers Reinforced . | . . . . . . Active Scanning Responses . | . . . . . . Cargo Convoy Interrupts . | . . . . . . Stealth | -11 -10 -10 -9 -9 -8 --------- Run | Yrd Mat Min Mat Min Mat Distress Signals . | . . . . . . Communications Jammed . | . . . . . . Distress Signals . | . . . . . . Times Spotted 20 | . 6 2 1 4 7 Peak Tracking Total 4 | . 3 2 1 4 4 Tactical Retreats . | . . . . . . Traps | -11 -10 -10 -9 -9 -8 ------- Run | Yrd Mat Min Mat Min Mat Traps Triggered . | . . . . . . Indirectly . | . . . . . . Trap Hack Attempts . | . . . . . . Triggered . | . . . . . . Disarmed . | . . . . . . Reprogrammed . | . . . . . . Reused . | . . . . . . Traps Extracted . | . . . . . . Installed . | . . . . . . Triggered . | . . . . . . Machines | -11 -10 -10 -9 -9 -8 ---------- Run | Yrd Mat Min Mat Min Mat Machines Disabled . | . . . . . . Max in Single Turn . | . . . . . . Machines Repaired . | . . . . . . Machines Dismantled . | . . . . . . Machines Sabotaged . | . . . . . . Overloaded Fab Kills . | . . . . . . Hacking | -11 -10 -10 -9 -9 -8 --------- Run | Yrd Mat Min Mat Min Mat Machines Accessed . | . . . . . . Terminals . | . . . . . . Fabricators . | . . . . . . Repair Stations . | . . . . . . Recycling Units . | . . . . . . Scanalyzers . | . . . . . . Garrison Access . | . . . . . . Total Hacks . | . . . . . . Successful . | . . . . . . Failed . | . . . . . . Catastrophic . | . . . . . . Database Lockouts . | . . . . . . Manual . | . . . . . . Terminals . | . . . . . . Fabricators . | . . . . . . Repair Stations . | . . . . . . Recycling Units . | . . . . . . Scanalyzers . | . . . . . . Garrison Access . | . . . . . . Terminal Hacks . | . . . . . . Fabricator Hacks . | . . . . . . Repair Station Hacks . | . . . . . . Recycling Unit Hacks . | . . . . . . Scanalyzer . | . . . . . . Garrison Access Hacks . | . . . . . . Unauthorized Hacks . | . . . . . . Terminals . | . . . . . . Fabricators . | . . . . . . Repair Stations . | . . . . . . Recycling Units . | . . . . . . Scanalyzers . | . . . . . . Garrison Access . | . . . . . . Data Cores Recovered . | . . . . . . Used . | . . . . . . Hacking Detections . | . . . . . . Full Trace Events . | . . . . . . Feedback Events . | . . . . . . Feedback Blocked . | . . . . . . Robot Schematics Acquired . | . . . . . . Robots Built . | . . . . . . Authchips . | . . . . . . Time . | . . . . . . Total Robot Build Rating . | . . . . . . Part Schematics Acquired . | . . . . . . Parts Built . | . . . . . . Authchips . | . . . . . . Time . | . . . . . . Total Part Build Rating . | . . . . . . Parts Repaired . | . . . . . . Time . | . . . . . . Parts Recycled . | . . . . . . Recycled Matter . | . . . . . . Retrieved Matter . | . . . . . . Retrieved Components . | . . . . . . Parts Scanalyzed . | . . . . . . Part Schematics Acquired . | . . . . . . Parts Damaged . | . . . . . . Bothacking | -11 -10 -10 -9 -9 -8 ------------ Run | Yrd Mat Min Mat Min Mat Used RIF Installer . | . . . . . . Robots Hacked . | . . . . . . Non-combat . | . . . . . . Combat . | . . . . . . Robot Hacks Applied . | . . . . . . Relay Couplers Released . | . . . . . . Fabnet Peak Effective % . | . . . . . . Robots Rewired . | . . . . . . Allies Hacked . | . . . . . . Hacks Repelled . | . . . . . . Allies | -11 -10 -10 -9 -9 -8 -------- Run | Yrd Mat Min Mat Min Mat Total Allies . | . . . . . . Largest Group . | . . . . . . Highest-Rated Group . | . . . . . . Highest-Rated Ally . | . . . . . . Total Orders . | . . . . . . Ally Attacks . | . . . . . . Total Damage . | . . . . . . Kills . | . . . . . . Allies Corrupted . | . . . . . . Allies Melted . | . . . . . . Intel | -11 -10 -10 -9 -9 -8 ------- Run | Yrd Mat Min Mat Min Mat Robot Analysis Total . | . . . . . . Derelict Logs Recovered . | . . . . . . Drone Launches . | . . . . . . Drone Recoveries . | . . . . . . Exploration | -11 -10 -10 -9 -9 -8 ------------- Run | Yrd Mat Min Mat Min Mat Turns Passed 1117 | 69 299 319 120 38 272 Spaces Moved 630 | 44 158 198 69 13 148 Core 14 | 14 . . . . . Treads 564 | 30 158 198 69 13 96 Legs 52 | . . . . . 52 Wheels . | . . . . . . Hover . | . . . . . . Flight . | . . . . . . Fastest Speed 50 | 50 160 160 160 160 130 Average Speed 155 | 125 160 160 160 160 149 Slowest Speed 160 | 160 160 160 160 160 160 Overloaded Moves . | . . . . . . Propulsion Burnouts . | . . . . . . Robots Hopped . | . . . . . . Cave-ins Triggered . | . . . . . . Exploration Rate (%) 19 | 3 38 40 7 5 22 Regions Visited 5 Branch Regions 2 Pre-discovered Areas 1 | . . 1 . . . Known Exits Taken . | . . . . . . Unknown Exits Taken 5 | 1 1 1 1 1 . Scrap Searched . | . . . . . . Spaces Dug . | . . . . . . Terrain Destroyed 46 | . . . . . 46 Melee . | . . . . . . Projectile . | . . . . . . AOE 46 | . . . . . 46 Terrain Rammed . | . . . . . . Walls Destroyed . | . . . . . . Machines Disabled . | . . . . . . Actions | -11 -10 -10 -9 -9 -8 --------- Run | Yrd Mat Min Mat Min Mat Total 694 | 57 178 198 73 18 170 Wait . | . . . . . . Move 625 | 43 157 197 68 12 148 Hop . | . . . . . . Pick Up 14 | 7 6 . 1 . . Fast Attach 2 | 2 . . . . . Attach 6 | 4 1 . 1 . . Detach . | . . . . . . Swap 3 | 1 . . . . 2 Drop 1 | . . . . . 1 Fire 42 | . 13 1 3 6 19 Melee . | . . . . . . Ram . | . . . . . . Kick . | . . . . . . Crush 1 | . 1 . . . . Escape Stasis . | . . . . . . Rewire . | . . . . . . Trap . | . . . . . . Miscellaneous . | . . . . . . Route ------- -11/Scrapyard -10/Materials -10/Mines (discovered 2 exits: [*Mat x2]) -9/Materials -9/Mines -8/Materials History --------- Turn | Location | Event 5 | -11/Scrapyard | Discovered new exit (range 15) 70 | -11/Scrapyard | Entered Materials 294 | -10/Materials | Discovered new exit (range 8) 302 | -10/Materials | Build established: Mutant 369 | -10/Materials | Entered Mines 470 | -10/Mines | Found a hidden stash of uninstalled traps 573 | -10/Mines | Discovered new exit (range 14) 674 | -10/Mines | Assembled infested the area 682 | -10/Mines | Learned location of Storage (-9) 682 | -10/Mines | Discovered new exit (range 6) 688 | -10/Mines | Entered Materials 688 | -9/Materials | Evolved 2 slots: Propulsion x1, Utility x1 689 | -9/Materials | Discovered new exit (range 8) 808 | -9/Materials | Entered Mines 813 | -9/Mines | Discovered new exit (range 8) 846 | -9/Mines | Entered Materials 846 | -8/Materials | Evolved 2 slots: Utility x2 1118 | -8/Materials | Self-destructed Last Messages --------------- K-01 Serf collects debris. U-05 Engineer lays Concrete. K-01 Serf collects debris. K-01 Serf cleans the Nuclear Reactor. U-05 Engineer lays Concrete. K-01 Serf collects debris. U-05 Engineer lays Concrete. K-01 Serf cleans the Nuclear Reactor. U-05 Engineer lays Concrete. K-01 Serf collects debris. U-05 Engineer lays Concrete. K-01 Serf collects debris. U-05 Engineer lays Concrete. ALERT: Hostiles spotted, dispatching reinforcements to Terminal M002. Destroyed Lgt. Nuclear Core. G-47 Trooper destroyed. The unstable cave ceiling collapses. G-47 Trooper destroyed. Grenade Launcher destroyed. Map ----- +----------------------------------------------------+ | ?????????????????????????????????????????????????? | | ???????????????? ?????????????????????????????? | | ???????????????# #????????????????????????????? | | ???????????????# #????????????????????????????? | | ?????########### ????????????????????????????? | | ?????# ## #????????????????????????????? | | ?????# """ ## #????????????????????????????? | | ?????# "R" ## #????????????????????????????? | | ?????# " " ## #????????????????????????????? | | ?????# ## #????????????????????????????? | | ?????# """## #????????????????????????????? | | ?????# """## #????????????????????????????? | | ?????# ! """## #????????????????????????????? | | ?????# ## ###??????????????????????????? | | ##+########+### #??????????????????????????? | | # ! #??????????????????????????? | | # #??????????????????????????? | | # "" /] """"" #??????????????????????????? | | # "Y /! """"" #??????????????##??????????? | | # "" """"" #???????????? #??????????? | | # """"" #?????????? ??????????? | | # """"" ########## ^?????????? | | """"" ?????????? | | ! [ """"" ????????? | | [ g ????????? | | @ [ ????????? | | ################ # ????????? | | #????????###! #?????????? | | "" #?????????????? #?????????? | | [ G" #????????????????????????????? | | * "" #????????????????????????????? | | # #????????????????????????????? | | # """ #????????????????????????????? | | ###### % ## * """ #????????????????????????????? | | ???# # [ ## """ #????????????????????????????? | | ???# # ??????????????????????????????? | | ???## #########?????????????????????????????? | | ?### #?????????????????????????????? | | ## #?????????????????????????????? | | ! = # #?????????????????????????????? | | ! = #?????????????????????????????? | | !* #?????????????????????????????? | | "" # #?????????????????????????????? | | """" # #?????????????????????????????? | | """" # #?????????????????????????????? | | """" #? #?????????????????????????????? | | """ #?######+#?????????????????????????????? | | #??????????????????????????????????????? | | #??????????????????????????????????????? | | ####### #??????????????????????????????????????? | +----------------------------------------------------+ Best States ------------- Heat Dissipation 31 Energy Generation 10 Energy Capacity 250 Matter Stores 300 Matter Capacity 300 Sight Range 16 Terrain Scan Density 10 Armor Coverage 150 Evasion (%) 55 Recoil Reduction 2 Item Schematics ----------------- None Robot Schematics ------------------ None Fabricated ------------ Nothing Alien Tech Used ----------------- None Achievements -------------- None Challenges ------------ None Game ------ Seed HellfireVortexDesublimator Manual? 0 Play Time 00:10:50 Cumulative 4.0 hours Start 2024.04.04 @ 19:39:15 End 2024.04.04 @ 19:48:03 Sessions 1 Manual Loads 0 Difficulty Rogue Special Mode None Game No. 10 Rogue 10 Adventurer 0 Explorer 0 Win Type - Total 0 Types 0/0/0/0/0/0/0/0/0 Lore% 3 Gallery% 9 Achievement% 10 Wizard Run 0 Options --------- Layout 1 ASCII 0 Keyboard 0 Movement Mouse Keybinds 0 Fullscreen 2 Font 32/Terminus Map View 50x35 Zoom Use 0% Tactical HUD 0 Map Filters NONE Filters NONE Steam 1 RUN: edfc566c-5ca8-47f9-921e-047106144def